fUST/lending_fUST_20250628
["ID","MTS","AMOUNT","RATE_DAILY","PERIOD"]
[368243172,1751071839449,-460.0,0.00019178,2]
[368243173,1751071839458,-460.0,0.00019178,2]
[368243174,1751071839469,-460.0,0.00019178,2]
[368243175,1751071839481,-2442.26,0.00019178,2]
[368243176,1751071839493,-460.0,0.00019178,2]
[368243177,1751071839503,-460.0,0.00019178,2]
[368243178,1751071839513,-460.0,0.00019178,2]
[368243179,1751071839522,-460.0,0.00019178,2]
[368243180,1751071839531,-425.86604,0.00019178,2]
[368243181,1751071839541,-1002.86,0.000192,2]
[368243182,1751071839551,-203.72036983,0.00019247,2]
[368243183,1751071839560,-608.56,0.00019442,3]
[368243184,1751071839570,-452.01,0.00019442,3]
[368243185,1751071839579,-460.0,0.00019452,2]
[368243186,1751071839589,-460.0,0.00019452,2]
[368243190,1751071839841,-460.0,0.00019452,2]
[368243191,1751071839857,-460.0,0.00019452,2]
[368243192,1751071839866,-635.12,0.00019452,2]
[368243193,1751071839876,-460.0,0.00019452,2]
[368243194,1751071839885,-460.0,0.00019452,2]
[368243195,1751071839895,-460.0,0.00019452,2]
[368243196,1751071839904,-460.0,0.00019452,2]
[368243197,1751071839913,-460.0,0.00019452,2]
[368243198,1751071839922,-249.28088236,0.00019452,2]
[368243199,1751071839932,-460.0,0.00019452,2]
[368243200,1751071839941,-460.0,0.00019452,2]
[368243201,1751071839951,-460.0,0.00019452,2]
[368243202,1751071839960,-460.0,0.00019452,2]
[368243203,1751071839969,-460.0,0.00019452,2]
[368243204,1751071839978,-227.03,0.00019452,2]
[368243205,1751071839987,-460.0,0.00019452,2]
[368243206,1751071839997,-211.71794713,0.00019452,2]
[368243207,1751071840006,-605.37,0.00019452,2]
[368243208,1751071840015,-460.0,0.00019452,2]
[368243209,1751071840024,-460.0,0.00019452,2]
[368243210,1751071840034,-509.55,0.00019452,2]
[368243211,1751071840043,-460.0,0.00019452,2]
[368243212,1751071840053,-158.11158878,0.00019452,2]
[368243213,1751071840064,-460.0,0.00019452,2]
[368243214,1751071840072,-460.0,0.00019452,2]
[368243215,1751071840082,-460.0,0.00019452,2]
[368243216,1751071840091,-460.0,0.00019452,2]
[368243217,1751071840100,-478.46342209,0.00019452,2]
[368243218,1751071840110,-684.75,0.00019452,2]
[368243219,1751071840119,-460.0,0.00019452,2]
[368243220,1751071840129,-460.0,0.00019452,2]
[368243221,1751071840139,-460.0,0.00019452,2]
[368243222,1751071840150,-460.0,0.00019452,2]
[368243224,1751071840159,-2502.6,0.00019452,2]
[368243226,1751071840170,-460.0,0.00019452,2]
[368243229,1751071840180,-460.0,0.00019452,2]
[368243231,1751071840189,-460.0,0.00019452,2]
[368243233,1751071840200,-547.46,0.00019452,2]
[368243235,1751071840218,-503.3,0.00019452,2]
[368243237,1751071840227,-460.0,0.00019452,2]
[368243239,1751071840237,-1275.5,0.00019452,2]
[368243241,1751071840246,-460.0,0.00019452,2]
[368243243,1751071840255,-1932.64,0.00019452,2]
[368243245,1751071840265,-1663.29,0.00019452,2]
[368243247,1751071840274,-460.0,0.00019452,2]
[368243249,1751071840284,-460.0,0.00019452,2]
[368243251,1751071840293,-460.0,0.00019452,2]
[368243253,1751071840302,-460.0,0.00019452,2]
[368243255,1751071840312,-701.64,0.00019452,2]
[368243257,1751071840321,-460.0,0.00019452,2]
[368243259,1751071840330,-460.0,0.00019452,2]
[368243261,1751071840339,-592.55,0.00019452,2]
[368243263,1751071840348,-460.0,0.00019452,2]
[368243265,1751071840358,-460.0,0.00019452,2]
[368243267,1751071840367,-460.0,0.00019452,2]
[368243269,1751071840376,-460.0,0.00019452,2]
[368243271,1751071840385,-460.0,0.00019452,2]
[368243273,1751071840394,-594.21,0.00019452,2]
[368243275,1751071840404,-460.0,0.00019452,2]
[368243277,1751071840413,-1021.41,0.00019452,2]
[368243279,1751071840424,-460.0,0.00019452,2]
[368243281,1751071840434,-2590.38,0.00019452,2]
[368243283,1751071840445,-766.04,0.00019452,2]
[368243285,1751071840454,-694.92,0.00019452,2]
[368243287,1751071840466,-460.0,0.00019452,2]
[368243289,1751071840476,-460.0,0.00019452,2]
[368243291,1751071840485,-460.0,0.00019452,2]
[368243293,1751071840495,-2284.01,0.00019452,2]
[368243295,1751071840505,-460.0,0.00019452,2]
[368243297,1751071840515,-460.0,0.00019452,2]
[368243299,1751071840524,-2585.72,0.00019452,2]
[368243301,1751071840534,-460.0,0.00019452,2]
[368243303,1751071840544,-460.0,0.00019452,2]
[368243305,1751071840554,-3694.73,0.00019452,2]
[368243307,1751071840563,-1949.36,0.00019452,2]
[368243309,1751071840573,-460.0,0.00019452,2]
[368243311,1751071840582,-460.0,0.00019452,2]
[368243313,1751071840591,-460.0,0.00019452,2]
[368243315,1751071840601,-460.0,0.00019452,2]
[368243317,1751071840610,-2567.2,0.00019452,2]
[368243319,1751071840620,-460.0,0.00019452,2]
[368243321,1751071840630,-460.0,0.00019452,2]
[368243323,1751071840639,-873.89,0.00019452,2]
[368243325,1751071840648,-460.0,0.00019452,2]
[368243327,1751071840657,-460.0,0.00019452,2]
[368243329,1751071840666,-724.21,0.00019452,2]
[368243331,1751071840678,-1304.39,0.00019452,2]
[368243333,1751071840687,-460.0,0.00019452,2]
[368243335,1751071840696,-1634.51,0.00019452,2]
[368243337,1751071840705,-4221.39,0.00019452,2]
[368243339,1751071840715,-460.0,0.00019452,2]
[368243341,1751071840724,-460.0,0.00019452,2]
[368243343,1751071840734,-460.0,0.00019452,2]
[368243345,1751071840743,-986.16,0.00019452,2]
[368243347,1751071840752,-460.0,0.00019452,2]
[368243349,1751071840762,-460.0,0.00019452,2]
[368243351,1751071840771,-1315.17,0.00019452,2]
[368243353,1751071840781,-649.63,0.00019452,2]
[368243355,1751071840790,-460.0,0.00019452,2]
[368243357,1751071840800,-460.0,0.00019452,2]
[368243359,1751071840809,-595.82,0.00019452,2]
[368243361,1751071840819,-973.25,0.00019452,2]
[368243363,1751071840828,-485.74,0.00019452,2]
[368243365,1751071840837,-460.0,0.00019452,2]
[368243367,1751071840846,-460.0,0.00019452,2]
[368243369,1751071840855,-1249.12,0.00019452,2]
[368243371,1751071840864,-1581.06,0.00019452,2]
[368243373,1751071840872,-460.0,0.00019452,2]
[368243375,1751071840882,-460.0,0.00019452,2]
[368243377,1751071840891,-2442.26,0.00019452,2]
[368243379,1751071840901,-460.0,0.00019452,2]
[368243381,1751071840910,-460.0,0.00019452,2]
[368243383,1751071840919,-460.0,0.00019452,2]
[368243385,1751071840928,-1475.38052214,0.00019626,2]
[368243387,1751071840938,-13633.88046903,0.00019626,2]
[368243389,1751071840947,-500.0,0.00019717,2]
[368243391,1751071840958,-485.62165416,0.00019717,2]
[368243393,1751071840967,-1000.0,0.00019721,2]
[368243395,1751071840977,-460.0,0.00019726,2]
[368243397,1751071840986,-460.0,0.00019726,2]
[368243399,1751071840995,-460.0,0.00019726,2]
[368243401,1751071841004,-460.0,0.00019726,2]
[368243403,1751071841013,-635.12,0.00019726,2]
[368243405,1751071841023,-460.0,0.00019726,2]
[368243407,1751071841032,-460.0,0.00019726,2]
[368243409,1751071841041,-460.0,0.00019726,2]
[368243411,1751071841050,-460.0,0.00019726,2]
[368243413,1751071841059,-444.65081181,0.00019726,2]
[368243415,1751071841068,-535.99549433,0.00019726,2]
[368243417,1751071841078,-460.0,0.00019726,2]
[368243419,1751071841087,-460.0,0.00019726,2]
[368243421,1751071841096,-291.32152958,0.00019726,2]
[368243423,1751071841106,-460.0,0.00019726,2]
[368243425,1751071841117,-460.0,0.00019726,2]
[368243427,1751071841126,-605.37,0.00019726,2]
[368243429,1751071841135,-460.0,0.00019726,2]
[368243431,1751071841144,-460.0,0.00019726,2]
[368243433,1751071841153,-509.55,0.00019726,2]
[368243435,1751071841163,-460.0,0.00019726,2]
[368243437,1751071841172,-460.0,0.00019726,2]
[368243439,1751071841181,-460.0,0.00019726,2]
[368243441,1751071841191,-460.0,0.00019726,2]
[368243443,1751071841202,-684.75,0.00019726,2]
[368243445,1751071841212,-460.0,0.00019726,2]
[368243447,1751071841222,-460.0,0.00019726,2]
[368243450,1751071841231,-460.0,0.00019726,2]
[368243452,1751071841242,-460.0,0.00019726,2]
[368243454,1751071841251,-2502.6,0.00019726,2]
[368243456,1751071841261,-460.0,0.00019726,2]
[368243457,1751071841270,-460.0,0.00019726,2]
[368243459,1751071841280,-460.0,0.00019726,2]
[368243461,1751071841290,-547.46,0.00019726,2]
[368243463,1751071841300,-503.3,0.00019726,2]
[368243465,1751071841309,-1275.5,0.00019726,2]
[368243467,1751071841319,-460.0,0.00019726,2]
[368243469,1751071841328,-1932.64,0.00019726,2]
[368243471,1751071841337,-1663.29,0.00019726,2]
[368243473,1751071841346,-460.0,0.00019726,2]
[368243475,1751071841355,-460.0,0.00019726,2]
[368243477,1751071841367,-460.0,0.00019726,2]
[368243479,1751071841376,-460.0,0.00019726,2]
[368243481,1751071841385,-701.64,0.00019726,2]
[368243483,1751071841395,-460.0,0.00019726,2]
[368243485,1751071841404,-460.0,0.00019726,2]
[368243487,1751071841413,-592.55,0.00019726,2]
[368243489,1751071841423,-460.0,0.00019726,2]
[368243491,1751071841433,-460.0,0.00019726,2]
[368243493,1751071841443,-375.743074,0.00019726,2]
[368243495,1751071841453,-460.0,0.00019726,2]
[368243497,1751071841462,-460.0,0.00019726,2]
[368243499,1751071841471,-594.21,0.00019726,2]
[368243502,1751071841482,-460.0,0.00019726,2]
[368243504,1751071841493,-1021.41,0.00019726,2]
[368243506,1751071841502,-460.0,0.00019726,2]
[368243508,1751071841512,-2590.38,0.00019726,2]
[368243510,1751071841521,-766.04,0.00019726,2]
[368243511,1751071841532,-694.92,0.00019726,2]
[368243513,1751071841542,-460.0,0.00019726,2]
[368243515,1751071841553,-460.0,0.00019726,2]
[368243517,1751071841563,-460.0,0.00019726,2]
[368243519,1751071841572,-2284.01,0.00019726,2]
[368243521,1751071841582,-460.0,0.00019726,2]
[368243523,1751071841592,-460.0,0.00019726,2]
[368243525,1751071841602,-2585.72,0.00019726,2]
[368243527,1751071841611,-156.55555328,0.00019726,2]
[368243530,1751071841622,-460.0,0.00019726,2]
[368243532,1751071841631,-3694.73,0.00019726,2]
[368243534,1751071841640,-1949.36,0.00019726,2]
[368243535,1751071841649,-460.0,0.00019726,2]
[368243538,1751071841659,-460.0,0.00019726,2]
[368243539,1751071841668,-460.0,0.00019726,2]
[368243541,1751071841677,-460.0,0.00019726,2]
[368243543,1751071841687,-2567.2,0.00019726,2]
[368243545,1751071841697,-460.0,0.00019726,2]
[368243547,1751071841706,-460.0,0.00019726,2]
[368243549,1751071841716,-873.89,0.00019726,2]
[368243551,1751071841725,-460.0,0.00019726,2]
[368243553,1751071841735,-460.0,0.00019726,2]
[368243555,1751071841745,-724.21,0.00019726,2]
[368243557,1751071841754,-1304.39,0.00019726,2]
[368243559,1751071841763,-460.0,0.00019726,2]
[368243561,1751071841772,-1634.51,0.00019726,2]
[368243564,1751071841786,-4221.39,0.00019726,2]
[368243566,1751071841795,-460.0,0.00019726,2]
[368243568,1751071841805,-165.48,0.00019726,2]
[368243570,1751071841814,-986.16,0.00019726,2]
[368243572,1751071841823,-460.0,0.00019726,2]
[368243574,1751071841832,-460.0,0.00019726,2]
[368243576,1751071841841,-1315.17,0.00019726,2]
[368243578,1751071841850,-649.63,0.00019726,2]
[368243580,1751071841860,-325.7,0.00019726,2]
[368243582,1751071841869,-374.97396452,0.00019726,2]
[368243584,1751071841878,-595.82,0.00019726,2]
[368243586,1751071841888,-973.25,0.00019726,2]
[368243588,1751071841900,-485.74,0.00019726,2]
[368243590,1751071841910,-460.0,0.00019726,2]
[368243592,1751071841919,-460.0,0.00019726,2]
[368243594,1751071841929,-1249.12,0.00019726,2]
[368243596,1751071841939,-1581.06,0.00019726,2]
[368243598,1751071841949,-460.0,0.00019726,2]
[368243600,1751071841958,-460.0,0.00019726,2]
[368243602,1751071841967,-2442.26,0.00019726,2]
[368243604,1751071841978,-460.0,0.00019726,2]
[368243606,1751071841986,-443.14,0.00019726,2]
[368243608,1751071841996,-460.0,0.00019726,2]
[368243610,1751071842006,-287.1658826,0.00019803,2]
[368243612,1751071842015,-500.0,0.00019803,2]
[368243614,1751071842025,-509.5180229,0.00019814,2]
[368243616,1751071842035,-500.0,0.00019858,2]
[368243618,1751071842043,-500.0,0.00019858,2]
[368243620,1751071842053,-8969.30636886,0.000199,2]
[368243622,1751071842062,-214.26261564,0.0002,2]
[368243624,1751071842071,-460.0,0.0002,2]
[368243626,1751071842080,-460.0,0.0002,2]
[368243628,1751071842090,-635.12,0.0002,2]
[368243630,1751071842099,-460.0,0.0002,2]
[368243632,1751071842108,-460.0,0.0002,2]
[368243634,1751071842118,-460.0,0.0002,2]
[368243636,1751071842127,-185.91726529,0.0002,2]
[368243638,1751071842136,-460.0,0.0002,2]
[368243640,1751071842146,-460.0,0.0002,2]
[368243642,1751071842155,-460.0,0.0002,2]
[368243644,1751071842165,-167.89,0.0002,2]
[368243646,1751071842174,-605.37,0.0002,2]
[368243648,1751071842183,-196.20703995,0.0002,2]
[368243650,1751071842193,-460.0,0.0002,2]
[368243652,1751071842204,-460.0,0.0002,2]
[368243654,1751071842214,-509.55,0.0002,2]
[368243656,1751071842223,-534.35,0.0002,2]
[368243658,1751071842232,-460.0,0.0002,2]
[368243660,1751071842242,-460.0,0.0002,2]
[368243662,1751071842251,-460.0,0.0002,2]
[368243664,1751071842260,-684.75,0.0002,2]
[368243666,1751071842269,-460.0,0.0002,2]
[368243668,1751071842278,-460.0,0.0002,2]
[368243670,1751071842287,-460.0,0.0002,2]
[368243672,1751071842296,-460.0,0.0002,2]
[368243674,1751071842305,-2502.6,0.0002,2]
[368243676,1751071842315,-460.0,0.0002,2]
[368243678,1751071842324,-460.0,0.0002,2]
[368243680,1751071842333,-547.46,0.0002,2]
[368243681,1751071842343,-503.3,0.0002,2]
[368243683,1751071842352,-1275.5,0.0002,2]
[368243685,1751071842363,-460.0,0.0002,2]
[368243687,1751071842372,-1932.64,0.0002,2]
[368243689,1751071842381,-1663.29,0.0002,2]
[368243691,1751071842390,-460.0,0.0002,2]
[368243693,1751071842400,-460.0,0.0002,2]
[368243695,1751071842409,-460.0,0.0002,2]
[368243698,1751071842419,-701.64,0.0002,2]
[368243700,1751071842429,-460.0,0.0002,2]
[368243702,1751071842440,-460.0,0.0002,2]
[368243704,1751071842449,-460.0,0.0002,2]
[368243706,1751071842459,-592.55,0.0002,2]
[368243708,1751071842468,-460.0,0.0002,2]
[368243710,1751071842478,-460.0,0.0002,2]
[368243712,1751071842487,-460.0,0.0002,2]
[368243714,1751071842498,-291.23006975,0.0002,2]
[368243716,1751071842507,-594.21,0.0002,2]
[368243718,1751071842517,-460.0,0.0002,2]
[368243720,1751071842526,-1021.41,0.0002,2]
[368243722,1751071842536,-460.0,0.0002,2]
[368243724,1751071842545,-2590.38,0.0002,2]
[368243727,1751071842556,-766.04,0.0002,2]
[368243729,1751071842566,-694.92,0.0002,2]
[368243732,1751071842576,-460.0,0.0002,2]
[368243734,1751071842586,-460.0,0.0002,2]
[368243736,1751071842595,-460.0,0.0002,2]
[368243738,1751071842605,-2284.01,0.0002,2]
[368243740,1751071842615,-460.0,0.0002,2]
[368243743,1751071842624,-460.0,0.0002,2]
[368243745,1751071842634,-2585.72,0.0002,2]
[368243746,1751071842643,-460.0,0.0002,2]
[368243749,1751071842653,-3694.73,0.0002,2]
[368243751,1751071842663,-1949.36,0.0002,2]
[368243753,1751071842672,-460.0,0.0002,2]
[368243755,1751071842682,-460.0,0.0002,2]
[368243757,1751071842692,-280.82,0.0002,2]
[368243758,1751071842701,-460.0,0.0002,2]
[368243760,1751071842710,-2567.2,0.0002,2]
[368243764,1751071842719,-460.0,0.0002,2]
[368243766,1751071842729,-460.0,0.0002,2]
[368243768,1751071842738,-873.89,0.0002,2]
[368243770,1751071842747,-460.0,0.0002,2]
[368243772,1751071842756,-460.0,0.0002,2]
[368243774,1751071842766,-724.21,0.0002,2]
[368243776,1751071842775,-1304.39,0.0002,2]
[368243778,1751071842784,-460.0,0.0002,2]
[368243780,1751071842794,-1634.51,0.0002,2]
[368243782,1751071842803,-4221.39,0.0002,2]
[368243784,1751071842813,-460.0,0.0002,2]
[368243786,1751071842822,-986.16,0.0002,2]
[368243789,1751071842831,-460.0,0.0002,2]
[368243791,1751071842840,-460.0,0.0002,2]
[368243793,1751071842849,-1315.17,0.0002,2]
[368243797,1751071842858,-649.63,0.0002,2]
[368243800,1751071842867,-595.82,0.0002,2]
[368243803,1751071842876,-973.25,0.0002,2]
[368243806,1751071842885,-485.74,0.0002,2]
[368243808,1751071842894,-460.0,0.0002,2]
[368243811,1751071842903,-460.0,0.0002,2]
[368243814,1751071842912,-1249.12,0.0002,2]
[368243817,1751071842921,-1581.06,0.0002,2]
[368243820,1751071842930,-460.0,0.0002,2]
[368243823,1751071842939,-460.0,0.0002,2]
[368243826,1751071842948,-2442.26,0.0002,2]
[368243828,1751071842957,-460.0,0.0002,2]
[368243830,1751071842966,-295.64573514,0.00020066,2]
[368243832,1751071842976,-1175.0,0.00020124,2]
[368243834,1751071842985,-213.75309343,0.0002014,2]
[368243836,1751071842994,-12562.41216491,0.0002014,2]
[368243838,1751071843005,-836.98798914,0.0002014,2]
[368243840,1751071843014,-160.0,0.0002014,2]
[368243842,1751071843023,-160.0,0.0002014,2]
[368243859,1751071843163,-214.91804724,0.0002014,2]
[368243861,1751071843173,-160.0,0.0002014,2]
[368243863,1751071843182,-847.04181546,0.0002014,2]
[368243865,1751071843191,-230.26210603,0.0002014,2]
[368243867,1751071843200,-160.0,0.0002014,2]
[368243869,1751071843212,-8969.30636885,0.00020141,2]
[368243871,1751071843221,-160.0,0.00020144,2]
[368243873,1751071843230,-179.57827425,0.0002017,2]
[368243876,1751071843239,-368.694212,0.00020187,2]
[368243879,1751071843250,-1000.0,0.00020265,2]
[368243882,1751071843259,-460.0,0.00020273,2]
[368243884,1751071843268,-460.0,0.00020273,2]
[368243886,1751071843278,-635.12,0.00020273,2]
[368243888,1751071843287,-460.0,0.00020273,2]
[368243890,1751071843295,-460.0,0.00020273,2]
[368243892,1751071843304,-460.0,0.00020273,2]
[368243894,1751071843313,-460.0,0.00020273,2]
[368243896,1751071843322,-460.0,0.00020273,2]
[368243898,1751071843332,-605.37,0.00020273,2]
[368243900,1751071843341,-460.0,0.00020273,2]
[368243903,1751071843350,-406.81425443,0.00020273,2]
[368243905,1751071843359,-509.55,0.00020273,2]
[368243906,1751071843369,-460.0,0.00020273,2]
[368243908,1751071843378,-460.0,0.00020273,2]
[368243910,1751071843387,-460.0,0.00020273,2]
[368243912,1751071843395,-684.75,0.00020273,2]
[368243914,1751071843404,-460.0,0.00020273,2]
[368243916,1751071843413,-460.0,0.00020273,2]
[368243918,1751071843423,-460.0,0.00020273,2]
[368243920,1751071843432,-2502.6,0.00020273,2]
[368243921,1751071843441,-460.0,0.00020273,2]
[368243922,1751071843450,-460.0,0.00020273,2]
[368243923,1751071843459,-547.46,0.00020273,2]
[368243924,1751071843468,-503.3,0.00020273,2]
[368243925,1751071843478,-1275.5,0.00020273,2]
[368243926,1751071843487,-460.0,0.00020273,2]
[368243927,1751071843496,-1932.64,0.00020273,2]
[368243928,1751071843506,-1663.29,0.00020273,2]
[368243929,1751071843515,-460.0,0.00020273,2]
[368243930,1751071843524,-460.0,0.00020273,2]
[368243931,1751071843534,-460.0,0.00020273,2]
[368243932,1751071843543,-701.64,0.00020273,2]
[368243933,1751071843552,-460.0,0.00020273,2]
[368243934,1751071843562,-460.0,0.00020273,2]
[368243935,1751071843571,-592.55,0.00020273,2]
[368243936,1751071843581,-460.0,0.00020273,2]
[368243937,1751071843591,-460.0,0.00020273,2]
[368243938,1751071843601,-460.0,0.00020273,2]
[368243939,1751071843610,-594.21,0.00020273,2]
[368243941,1751071843620,-460.0,0.00020273,2]
[368243943,1751071843630,-1021.41,0.00020273,2]
[368243945,1751071843640,-2590.38,0.00020273,2]
[368243947,1751071843649,-766.04,0.00020273,2]
[368243949,1751071843660,-694.92,0.00020273,2]
[368243951,1751071843669,-460.0,0.00020273,2]
[368243953,1751071843679,-460.0,0.00020273,2]
[368243955,1751071843688,-460.0,0.00020273,2]
[368243957,1751071843697,-2284.01,0.00020273,2]
[368243959,1751071843707,-460.0,0.00020273,2]
[368243961,1751071843716,-460.0,0.00020273,2]
[368243963,1751071843726,-2585.72,0.00020273,2]
[368243965,1751071843735,-460.0,0.00020273,2]
[368243967,1751071843745,-3694.73,0.00020273,2]
[368243969,1751071843754,-1949.36,0.00020273,2]
[368243971,1751071843763,-460.0,0.00020273,2]
[368243973,1751071843773,-460.0,0.00020273,2]
[368243975,1751071843781,-460.0,0.00020273,2]
[368243977,1751071843791,-2567.2,0.00020273,2]
[368243979,1751071843800,-460.0,0.00020273,2]
[368243981,1751071843809,-460.0,0.00020273,2]
[368243983,1751071843819,-873.89,0.00020273,2]
[368243985,1751071843828,-547.1896355,0.00020273,2]
[368243987,1751071843838,-460.0,0.00020273,2]
[368243989,1751071843847,-724.21,0.00020273,2]
[368243991,1751071843856,-1304.39,0.00020273,2]
[368243993,1751071843865,-460.0,0.00020273,2]
[368243995,1751071843874,-1634.51,0.00020273,2]
[368243997,1751071843884,-4221.39,0.00020273,2]
[368243999,1751071843893,-528.4,0.00020273,2]
[368244001,1751071843902,-986.16,0.00020273,2]
[368244003,1751071843911,-460.0,0.00020273,2]
[368244005,1751071843920,-460.0,0.00020273,2]
[368244007,1751071843930,-1315.17,0.00020273,2]
[368244009,1751071843940,-649.63,0.00020273,2]
[368244011,1751071843949,-595.82,0.00020273,2]
[368244013,1751071843959,-973.25,0.00020273,2]
[368244015,1751071843969,-485.74,0.00020273,2]
[368244017,1751071843978,-176.56,0.00020273,2]
[368244019,1751071843987,-1249.12,0.00020273,2]
[368244021,1751071843997,-1581.06,0.00020273,2]
[368244023,1751071844007,-460.0,0.00020273,2]
[368244025,1751071844016,-460.0,0.00020273,2]
[368244027,1751071844025,-460.0,0.00020273,2]
[368244029,1751071844034,-2442.26,0.00020273,2]
[368244031,1751071844043,-420.0,0.0002037,2]
[368244033,1751071844053,-8969.30636885,0.00020383,3]
[368244035,1751071844062,-1475.38052211,0.0002042,2]
[368244037,1751071844072,-1680.0,0.0002047,2]
[368244039,1751071844081,-460.0,0.00020547,2]
[368244041,1751071844091,-460.0,0.00020547,2]
[368244043,1751071844100,-635.12,0.00020547,2]
[368244045,1751071844109,-460.0,0.00020547,2]
[368244047,1751071844118,-460.0,0.00020547,2]
[368244049,1751071844128,-460.0,0.00020547,2]
[368244051,1751071844138,-460.0,0.00020547,2]
[368244053,1751071844147,-460.0,0.00020547,2]
[368244055,1751071844157,-605.37,0.00020547,2]
[368244057,1751071844166,-460.0,0.00020547,2]
[368244059,1751071844175,-509.55,0.00020547,2]
[368244061,1751071844184,-460.0,0.00020547,2]
[368244063,1751071844194,-460.0,0.00020547,2]
[368244065,1751071844206,-460.0,0.00020547,2]
[368244067,1751071844215,-684.75,0.00020547,2]
[368244069,1751071844224,-460.0,0.00020547,2]
[368244071,1751071844234,-460.0,0.00020547,2]
[368244073,1751071844243,-460.0,0.00020547,2]
[368244075,1751071844252,-2502.6,0.00020547,2]
[368244077,1751071844261,-460.0,0.00020547,2]
[368244079,1751071844271,-162.56,0.00020547,2]
[368244081,1751071844280,-547.46,0.00020547,2]
[368244083,1751071844289,-503.3,0.00020547,2]
[368244085,1751071844298,-1275.5,0.00020547,2]
[368244087,1751071844307,-460.0,0.00020547,2]
[368244089,1751071844316,-1932.64,0.00020547,2]
[368244091,1751071844325,-1663.29,0.00020547,2]
[368244093,1751071844335,-460.0,0.00020547,2]
[368244095,1751071844345,-460.0,0.00020547,2]
[368244098,1751071844354,-460.0,0.00020547,2]
[368244100,1751071844363,-701.64,0.00020547,2]
[368244102,1751071844372,-460.0,0.00020547,2]
[368244104,1751071844382,-460.0,0.00020547,2]
[368244106,1751071844391,-592.55,0.00020547,2]
[368244108,1751071844400,-460.0,0.00020547,2]
[368244110,1751071844409,-460.0,0.00020547,2]
[368244112,1751071844419,-460.0,0.00020547,2]
[368244114,1751071844427,-594.21,0.00020547,2]
[368244116,1751071844437,-460.0,0.00020547,2]
[368244118,1751071844446,-1021.41,0.00020547,2]
[368244120,1751071844455,-2590.38,0.00020547,2]
[368244122,1751071844465,-766.04,0.00020547,2]
[368244124,1751071844474,-694.92,0.00020547,2]
[368244126,1751071844484,-460.0,0.00020547,2]
[368244128,1751071844493,-460.0,0.00020547,2]
[368244130,1751071844503,-460.0,0.00020547,2]
[368244132,1751071844512,-2284.01,0.00020547,2]
[368244134,1751071844522,-422.28546775,0.00020547,2]
[368244136,1751071844531,-315.99,0.00020547,2]
[368244138,1751071844540,-2585.72,0.00020547,2]
[368244140,1751071844550,-464.64,0.00020547,2]
[368244142,1751071844559,-3694.73,0.00020547,2]
[368244144,1751071844569,-1949.36,0.00020547,2]